bitfinex/quotes_SOLUSD_20220208
["timestamp","ask_amount","ask_price","bid_price","bid_amount"]
[1644320325146,6.0,113.76,113.67,1.86813747]
[1644320325345,50.5551,113.78,113.67,21.33433747]
[1644320325545,37.3618,113.78,113.67,25.73033747]
[1644320325748,37.3618,113.78,113.68,0.024]
[1644320325947,37.3618,113.78,113.68,1.89213747]
[1644320326146,37.3618,113.78,113.68,6.024]
[1644320326350,37.3618,113.78,113.68,0.274]
[1644320326748,37.3618,113.78,113.68,13.466]
[1644320327747,37.3618,113.78,113.68,15.33413747]
[1644320327949,43.3618,113.78,113.68,15.33413747]
[1644320328148,18.67,113.78,113.68,16.57663998]
[1644320328349,23.6069,113.8,113.68,22.57663998]
[1644320328648,42.2769,113.8,113.68,22.57663998]
[1644320328850,55.468,113.8,113.68,20.70850251]
[1644320329051,55.468,113.8,113.68,14.70850251]
[1644320329250,55.468,113.8,113.68,13.466]
[1644320329651,2.10775549,113.79,113.68,13.216]
[1644320329851,12.67,113.79,113.68,13.216]
[1644320330051,25.8626,113.79,113.68,13.216]
[1644320331251,25.8626,113.79,113.68,0.274]
[1644320331554,27.97035549,113.79,113.68,0.024]
[1644320331751,25.8626,113.79,113.68,0.024]
[1644320332051,25.8626,113.79,113.68,1.89213747]
[1644320332854,25.8626,113.79,113.68,15.33423747]
[1644320333153,25.8626,113.79,113.68,16.57673998]
[1644320333352,25.8626,113.79,113.68,15.33423747]
[1644320333552,27.97035549,113.79,113.68,0.024]
[1644320333758,40.22635549,113.79,113.68,0.024]
[1644320333955,46.22635549,113.79,113.68,0.024]
[1644320334360,50.62235549,113.79,113.68,0.024]
[1644320334554,51.86569503,113.79,113.68,0.024]
[1644320335555,46.22635549,113.79,113.68,0.024]
[1644320336955,33.97035549,113.79,113.68,0.024]
[1644320337156,33.97035549,113.79,113.68,1.89213747]
[1644320337157,31.8626,113.79,113.68,1.89213747]
[1644320337355,31.8626,113.79,113.68,3.13463998]
[1644320337662,31.8626,113.79,113.68,3.38463998]
[1644320337857,18.67,113.79,113.68,16.57683998]
[1644320338063,18.67,113.79,113.68,22.57683998]
[1644320339261,18.67,113.79,113.68,20.97283998]
[1644320339460,18.67,113.79,113.69,1.24250251]
[1644320339659,12.67,113.79,113.71,13.1883]
[1644320340060,12.67,113.79,113.71,13.4383]
[1644320344988,37.46073954,113.82,113.71,13.4383]
[1644320345189,12.67,113.81,113.71,13.4623]
[1644320346791,12.67,113.81,113.71,14.70480251]
[1644320347096,12.67,113.81,113.71,13.4623]
[1644320347892,12.67,113.81,113.73,13.1862]
[1644320348092,25.51933954,113.83,113.73,13.1862]
[1644320348292,25.51933954,113.83,113.73,15.3043617]
[1644320348591,31.51933954,113.83,113.73,21.3283617]
[1644320348992,30.276,113.83,113.73,15.3283617]
[1644320349191,30.276,113.83,113.73,21.3283617]
[1644320350293,24.276,113.83,113.73,21.3283617]
[1644320352204,13.91333954,113.85,113.73,21.3283617]
[1644320352397,18.67,113.85,113.74,0.024]
[1644320352597,18.67,113.85,113.77,13.1825]
[1644320352798,18.67,113.85,113.77,13.4325]
[1644320353198,31.8538,113.85,113.77,0.25]
[1644320354005,31.8538,113.85,113.75,53.8148]
[1644320354806,31.8538,113.85,113.76,13.1837]
[1644320355200,31.8538,113.85,113.76,13.4337]
[1644320356000,31.8538,113.85,113.76,19.4337]
[1644320356203,31.8538,113.85,113.76,13.4337]
[1644320356501,31.8538,113.85,113.76,13.1837]
[1644320357602,31.8538,113.85,113.76,19.1837]
[1644320357803,31.8538,113.85,113.76,13.4337]
[1644320359705,18.67,113.85,113.76,13.4337]
[1644320361812,31.8533,113.85,113.76,13.4337]
[1644320362415,23.1932,113.86,113.76,15.3018617]
[1644320362711,24.65753954,113.87,113.76,27.4798617]
[1644320362922,23.4142,113.87,113.76,33.4798617]
[1644320363114,1.24333954,113.88,113.76,33.4798617]
[1644320363313,12.67,113.9,113.8,13.1777]
[1644320363314,14.42283954,113.89,113.8,13.1777]
[1644320363512,1.24333954,113.89,113.8,13.1777]
[1644320363712,1.24333954,113.89,113.8,13.4277]
[1644320364514,13.91333954,113.9,113.8,13.4277]
[1644320365613,13.91333954,113.9,113.8,19.4277]
[1644320366016,19.91333954,113.9,113.8,19.4277]
[1644320366214,6.0,113.9,113.8,19.4277]
[1644320366414,1.24333954,113.91,113.8,19.4277]
[1644320366615,1.24333954,113.91,113.81,23.1957]
[1644320366814,24.0953,113.92,113.84,13.1741]
[1644320366815,25.33863954,113.92,113.84,13.1741]
[1644320367214,25.33863954,113.92,113.84,13.4241]
[1644320367416,1.24333954,113.92,113.84,13.4241]
[1644320367939,38.37103954,113.93,113.84,13.4241]
[1644320368116,19.91333954,113.93,113.84,13.4241]
[1644320368315,13.91333954,113.93,113.84,13.4241]
[1644320368515,72.53713267,113.96,113.84,13.4241]
[1644320368516,1.24333954,113.92,113.84,13.4241]
[1644320368715,1.24333954,113.94,113.84,13.4241]
[1644320368916,1.24333954,113.95,113.84,22.3901]
[1644320369117,1.24333954,113.95,113.84,28.3901]
[1644320369317,1.24333954,113.95,113.84,32.7801]
[1644320369517,37.93013954,113.96,113.84,32.7801]
[1644320369716,31.26013954,113.96,113.85,23.4118]
[1644320369917,31.26013954,113.96,113.88,13.1691]
[1644320370323,31.26013954,113.96,113.88,13.4191]
[1644320371121,30.0168,113.96,113.88,13.4191]
[1644320372021,6.0,113.96,113.88,13.4191]
[1644320372422,24.71293954,113.97,113.88,13.4191]
[1644320372623,1.24333954,113.98,113.88,13.4191]
[1644320372828,24.44683954,113.99,113.88,35.9765]
[1644320373224,30.44683954,113.99,113.88,35.9765]
[1644320373523,1.24333954,113.98,113.88,35.9765]
[1644320373723,30.44683954,113.99,113.88,35.4765]
[1644320374122,30.44683954,113.99,113.88,41.4765]
[1644320375024,30.44683954,113.99,113.88,41.2265]
[1644320375025,1.24333954,113.98,113.88,41.2265]
[1644320375225,13.91333954,113.98,113.86,13.1706]
[1644320375447,27.41089503,113.97,113.86,13.1706]
[1644320375646,27.41089503,113.97,113.86,19.1706]
[1644320375845,2.10775549,113.96,113.86,19.1706]
[1644320376548,2.10775549,113.96,113.86,19.4206]
[1644320376745,13.1721,113.95,113.86,19.4206]
[1644320377146,19.1721,113.95,113.86,19.4206]
[1644320390570,20.41543954,113.95,113.86,19.4206]
[1644320391376,20.41543954,113.95,113.86,19.1706]
[1644320392869,1.24333954,113.94,113.86,19.4206]
[1644320393072,1.24333954,113.94,113.86,19.1706]
[1644320394278,1.24333954,113.94,113.86,19.4206]
[1644320394970,1.24333954,113.93,113.86,19.4206]
[1644320395771,1.24333954,113.92,113.86,6.0]
[1644320396175,1.24333954,113.92,113.84,44.0443]
[1644320396374,1.24333954,113.92,113.84,44.2943]
[1644320397473,1.24333954,113.91,113.84,44.2943]
[1644320398879,1.24333954,113.91,113.84,38.2943]
[1644320401384,1.24333954,113.91,113.84,38.0443]
[1644320402800,1.24333954,113.91,113.84,38.2943]
[1644320403802,1.24333954,113.92,113.84,38.2943]
[1644320405105,1.24333954,113.93,113.84,44.2943]
[1644320405303,1.24333954,113.93,113.85,1.86447248]
[1644320405504,1.24333954,113.93,113.87,13.1682]
[1644320405703,1.24333954,113.93,113.87,13.4182]
[1644320405905,1.24333954,113.95,113.87,13.4182]
[1644320406104,1.24333954,113.95,113.87,36.5919]
[1644320406305,1.24333954,113.95,113.87,42.5919]
[1644320406504,1.24333954,113.95,113.87,36.5919]
[1644320407006,1.24333954,113.95,113.87,42.5919]
[1644320407506,1.24333954,113.95,113.87,54.30437248]
[1644320407706,1.28520103,113.97,113.87,54.30437248]
[1644320407906,1.24333954,113.97,113.87,79.04647248]
[1644320408107,0.04186149,113.97,113.88,12.67]
[1644320408408,0.04186149,113.97,113.9,13.1628]
[1644320408606,1.28520103,113.98,113.9,52.3654]
[1644320408808,1.24333954,113.98,113.91,1.86447248]
[1644320409012,1.24333954,113.99,113.91,1.86447248]
[1644320409212,1.24333954,114.0,113.91,12.50047248]
[1644320409414,1.28520103,114.0,113.91,25.17047248]
[1644320409610,1.24333954,114.0,113.92,1.86447248]
[1644320409816,1.24333954,114.0,113.92,2.11447248]
[1644320410011,1.24333954,114.0,113.92,8.11447248]
[1644320410215,1.24333954,114.0,113.92,32.36927248]
[1644320410414,1.24333954,114.0,113.93,15.02597248]
[1644320410613,1.28520103,114.01,113.93,46.80697248]
[1644320410815,1.24333954,114.02,113.94,1.86447248]
[1644320411014,1.24333954,114.03,113.94,1.86447248]
[1644320411215,1.24333954,114.03,113.95,12.67]
[1644320411614,1.24333954,114.03,113.95,18.92]
[1644320411813,1.24333954,114.03,113.95,20.78447248]
[1644320412016,1.28520103,114.04,113.95,20.78447248]
[1644320412215,1.24333954,114.04,113.95,20.78447248]
[1644320412415,1.24333954,114.04,113.95,18.92]
[1644320412814,1.24333954,114.04,113.96,13.1575]
[1644320413014,1.24333954,114.04,113.96,21.9205]
[1644320413216,1.24333954,114.04,113.96,28.1705]
[1644320413813,1.28520103,114.05,113.96,28.1705]
[1644320414015,1.24333954,114.05,113.96,28.1705]
[1644320414214,1.24333954,114.05,113.97,1.86447248]
[1644320414416,62.50907718,114.1,113.99,13.1541]
[1644320414417,1.24333954,114.06,113.99,13.1541]
[1644320414618,0.04186149,114.06,113.99,31.0951]
[1644320414813,1.24333954,114.07,114.0,1.86447248]
[1644320415013,1.28520103,114.09,114.0,1.86447248]
[1644320415212,1.28520103,114.09,114.0,8.11447248]
[1644320415414,1.24333954,114.09,114.0,8.11447248]
[1644320415714,1.28520103,114.1,114.02,13.1516]
[1644320415916,1.24333954,114.1,114.02,22.6036]
[1644320416114,1.24333954,114.11,114.02,28.6036]
[1644320416316,1.24333954,114.11,114.03,24.9334]
[1644320416514,7.24333954,114.11,114.03,24.9334]
[1644320416715,1.24333954,114.11,114.03,31.1834]
[1644320416914,7.24333954,114.11,114.03,31.1834]
[1644320417515,7.24333954,114.11,114.03,25.1834]
[1644320417716,6.0,114.11,114.04,13.1496]
[1644320418113,6.0,114.11,114.04,13.3996]
[1644320418313,1.28520103,114.12,114.04,13.3996]
[1644320418512,6.0,114.11,114.04,13.3996]
[1644320418914,1.28520103,114.12,114.04,13.3996]
[1644320419314,7.28520103,114.12,114.04,13.3996]
[1644320419514,7.28520103,114.12,114.04,19.3996]
[1644320419713,7.28520103,114.12,114.04,13.3996]
[1644320420315,7.28520103,114.12,114.04,19.3996]
[1644320420714,7.28520103,114.12,114.04,13.1496]
[1644320420715,2.10775549,114.11,114.04,13.1496]
[1644320420920,2.10775549,114.11,114.03,24.9334]
[1644320421415,1.28520103,114.12,114.03,24.9334]
[1644320422218,1.28520103,114.12,114.03,38.3347]
[1644320422917,3.39295652,114.12,114.03,38.3347]
[1644320423117,1.28520103,114.12,114.03,38.3347]
[1644320423618,0.04186149,114.12,114.03,38.3347]
[1644320423819,13.1523,114.12,114.03,38.3347]
[1644320424117,19.1523,114.12,114.03,38.3347]
[1644320424317,19.1523,114.12,114.03,0.25]
[1644320424618,2.10775549,114.11,114.02,22.9337]
[1644320424818,19.1523,114.12,114.02,23.1837]
[1644320425020,13.1523,114.12,114.02,23.1837]
[1644320425417,15.26005549,114.12,114.02,22.9337]
[1644320426018,13.1523,114.12,114.02,22.9337]
[1644320426419,13.1523,114.12,114.02,36.0861]
[1644320426819,13.1523,114.12,114.02,36.3361]
[1644320427419,14.38841921,114.12,114.02,36.3361]
[1644320428624,20.38841921,114.12,114.02,36.3361]
[1644320429725,1.23611921,114.11,114.02,36.3361]
[1644320430625,1.23611921,114.11,114.02,42.0861]
[1644320430827,29.1674747,114.11,114.0,23.3959]
[1644320431028,1.23611921,114.1,113.97,22.8232]
[1644320431228,1.2779807,114.09,113.98,22.5462]
[1644320431631,13.9479807,114.09,113.98,28.5462]
[1644320432231,13.9479807,114.09,113.98,41.7024]
[1644320432531,6.04186149,114.09,113.98,43.57198898]
[1644320432731,0.04186149,114.09,113.98,43.82198898]
[1644320432930,0.04186149,114.09,113.99,12.67]
[1644320433130,0.04186149,114.09,113.99,26.762]
[1644320433331,0.04186149,114.09,114.0,1.86958898]
[1644320433530,7.2779807,114.1,114.0,1.86958898]
[1644320433731,7.2779807,114.1,114.02,13.1516]
[1644320433930,7.23611921,114.1,114.02,13.1516]
[1644320434131,7.23611921,114.1,114.02,13.4016]
[1644320434929,7.23611921,114.1,114.02,0.25]
[1644320435333,1.23611921,114.09,114.0,25.1086]
[1644320435538,1.23611921,114.08,114.0,25.1086]
[1644320436742,1.23611921,114.08,114.01,13.1535]
[1644320438837,1.23611921,114.08,114.01,0.25]
[1644320439137,1.23611921,114.06,114.01,0.25]
[1644320439340,1.23611921,114.06,114.0,25.1086]
[1644320439538,1.23611921,114.07,114.0,0.25]
[1644320439737,1.23611921,114.06,113.99,4.634]
[1644320439939,13.157,114.08,113.95,16.81143263]
[1644320439940,1.23611921,114.05,113.98,13.1562]
[1644320440138,1.23611921,114.04,113.98,6.0]
[1644320440342,1.23611921,114.04,113.98,6.25]
[1644320440542,1.23611921,114.04,113.98,6.0]
[1644320440739,1.23611921,114.04,113.95,30.8333]
[1644320441341,1.23611921,114.04,113.95,45.86278898]
[1644320441839,1.2779807,114.05,113.95,45.86278898]
[1644320442042,1.23611921,114.05,113.95,46.11278898]
[1644320442239,1.2779807,114.05,113.95,72.02763263]
[1644320442641,1.2779807,114.05,113.95,84.69763263]
[1644320443659,1.23611921,114.04,113.95,84.69763263]
[1644320444860,1.23611921,114.03,113.95,74.14178898]
[1644320445062,1.23611921,114.03,113.95,69.75578898]
[1644320445865,1.23611921,114.03,113.95,69.50578898]
[1644320446063,1.23611921,114.03,113.95,56.83578898]
[1644320447165,1.23611921,114.03,113.95,57.08578898]
[1644320447966,1.2779807,114.04,113.95,57.08578898]
[1644320448367,1.23611921,114.03,113.95,57.08578898]
[1644320448766,1.23611921,114.03,113.95,55.2162]
[1644320449867,1.2779807,114.04,113.96,1.86958898]
[1644320450067,1.23611921,114.04,113.98,13.1573]
[1644320450268,1.2779807,114.05,113.98,24.9713]
[1644320450570,1.23611921,114.05,113.98,32.84088898]
[1644320450868,1.23611921,114.04,113.98,30.9713]
[1644320452670,1.23611921,114.05,113.98,30.9713]
[1644320453874,1.23611921,114.04,113.98,30.9713]
[1644320454975,1.23611921,114.05,114.0,13.1539]
[1644320455182,1.23611921,114.05,114.0,19.1539]
[1644320455375,1.23611921,114.05,114.0,19.4039]
[1644320455575,1.23611921,114.07,114.0,19.4039]
[1644320456376,1.23611921,114.08,114.0,21.26971485]
[1644320456576,7.23611921,114.08,114.0,21.26971485]
[1644320456776,1.23611921,114.08,114.0,21.26971485]
[1644320456977,7.23611921,114.08,114.0,19.4039]
[1644320457179,1.23611921,114.07,114.0,19.4039]
[1644320457580,7.23611921,114.08,114.0,19.4039]
[1644320457782,1.23611921,114.08,114.0,19.4039]
[1644320458081,1.23611921,114.08,114.0,19.1539]
[1644320458286,7.23611921,114.08,114.0,19.1539]
[1644320458487,1.23611921,114.07,114.0,19.1539]
[1644320459083,1.23611921,114.08,114.0,19.1539]
[1644320459582,1.23611921,114.07,114.0,19.4039]
[1644320463986,7.23611921,114.07,114.0,19.4039]
[1644320464488,7.23611921,114.07,114.0,13.4039]
[1644320464692,7.23611921,114.07,114.0,19.4039]
[1644320465392,6.0,114.07,114.0,19.4039]
[1644320465692,1.23611921,114.08,114.0,19.4039]
[1644320465892,1.23611921,114.08,114.0,31.90071485]
[1644320466296,0.04186149,114.1,114.0,44.57071485]
[1644320466493,50.2831807,114.11,114.04,13.1472]
[1644320466695,50.24131921,114.11,114.04,27.6752]
[1644320466893,50.24131921,114.11,114.04,29.54101485]
[1644320467296,1.23611921,114.11,114.04,29.54101485]
[1644320467996,1.23611921,114.12,114.04,29.54101485]
[1644320468197,7.23611921,114.12,114.04,29.54101485]
[1644320468396,1.23611921,114.12,114.04,29.54101485]
[1644320469099,7.23611921,114.12,114.04,29.54101485]
[1644320469314,1.23611921,114.12,114.04,29.54101485]
[1644320469515,7.23611921,114.12,114.04,29.54101485]
[1644320473018,7.23611921,114.12,114.04,29.29101485]
[1644320473217,7.23611921,114.12,114.04,13.1472]
[1644320473618,1.23611921,114.11,114.04,13.1472]
[1644320474318,1.23611921,114.11,114.03,36.6903]
[1644320474918,1.23611921,114.11,114.03,13.1525]
[1644320475720,14.38861921,114.11,114.03,13.1525]
[1644320475920,1.23611921,114.1,114.03,13.1525]
[1644320476121,3.3438747,114.1,114.01,13.154]
[1644320476420,1.23611921,114.09,114.01,13.154]
[1644320477219,1.23611921,114.08,114.01,13.154]
[1644320477422,1.23611921,114.08,114.0,13.156]
[1644320477620,1.23611921,114.08,113.97,68.6428]
[1644320477823,7.2779807,114.08,113.97,68.6428]
[1644320478020,1.23611921,114.07,113.97,74.6428]
[1644320478220,1.23611921,114.07,113.97,76.50850512]
[1644320478420,7.2779807,114.08,113.97,76.50850512]
[1644320478622,13.1568,114.07,113.98,13.1583]
[1644320478822,14.39291921,114.07,113.98,13.4083]
[1644320479123,14.39291921,114.07,113.98,19.4083]
[1644320479320,39.09101921,114.07,113.98,19.4083]
[1644320481122,1.23611921,114.06,113.98,21.27400512]
[1644320481321,25.93421921,114.07,113.98,21.27400512]
[1644320482224,1.2779807,114.08,113.99,4.385]
[1644320482422,14.4325807,114.09,114.01,13.1537]
[1644320482621,14.39071921,114.09,114.01,13.1537]
[1644320482822,1.23611921,114.08,114.01,13.4037]
[1644320483024,1.23611921,114.08,114.01,13.1537]
[1644320483223,1.23611921,114.08,114.01,13.4037]
[1644320483425,6.0,114.08,114.01,13.4037]
[1644320483925,14.39071921,114.09,114.01,13.4037]
[1644320484124,20.39071921,114.09,114.01,13.4037]
[1644320485125,1.23611921,114.08,114.01,13.4037]
[1644320485325,1.23611921,114.08,114.02,1.86570512]
[1644320485525,1.23611921,114.09,114.01,13.4037]
[1644320485727,1.23611921,114.09,114.03,13.1528]
[1644320487328,1.23611921,114.09,114.04,1.86570512]
[1644320487529,1.23611921,114.09,114.03,13.1528]
[1644320491235,1.23611921,114.1,114.03,15.26846865]
[1644320491435,1.23611921,114.1,114.05,13.1469]
[1644320491835,1.23611921,114.11,114.06,1.86566865]
[1644320492040,6.0,114.12,114.06,1.86566865]
[1644320492236,26.18001921,114.13,114.06,8.11566865]
[1644320492536,6.0,114.12,114.07,13.1467]
[1644320492735,30.9439,114.13,114.07,13.3967]
[1644320493134,30.9439,114.13,114.08,1.86566865]
[1644320493335,24.9439,114.13,114.08,1.86566865]
[1644320493536,1.2779807,114.15,114.08,2.11566865]
[1644320493835,1.23611921,114.15,114.08,2.11566865]
[1644320494737,1.23611921,114.15,114.09,13.1449]
[1644320494937,7.23611921,114.15,114.09,13.1449]
[1644320495137,26.09711921,114.16,114.09,13.3949]
[1644320495739,24.861,114.16,114.09,13.3949]
[1644320495940,30.861,114.16,114.09,13.3949]
[1644320496639,6.0,114.16,114.09,15.26056865]
[1644320497042,23.12816149,114.18,114.09,15.26056865]
[1644320497241,23.12816149,114.18,114.09,45.87856865]
[1644320497439,29.12816149,114.18,114.09,45.87856865]
[1644320498440,29.12816149,114.18,114.09,50.25856865]
[1644320498840,6.04186149,114.18,114.09,50.25856865]
[1644320499243,0.04186149,114.18,114.09,50.25856865]
[1644320500450,0.04186149,114.18,114.09,62.92856865]
[1644320500848,0.04186149,114.18,114.09,77.79819008]
[1644320501045,0.04186149,114.2,114.13,13.1356]
[1644320501249,0.04186149,114.2,114.14,22.6058]
[1644320501445,0.04186149,114.24,114.14,48.62166865]
[1644320501646,0.04186149,114.25,114.14,53.006]
[1644320501846,0.04186149,114.25,114.15,1.86566865]
[1644320502047,49.4139807,114.26,114.14,57.384]
[1644320502446,0.04186149,114.25,114.14,59.24966865]
[1644320502645,0.04186149,114.25,114.14,54.87166865]
[1644320502845,0.04186149,114.25,114.15,13.1353]
[1644320503044,54.17786149,114.26,114.15,13.1353]
[1644320503249,54.17786149,114.26,114.15,19.3853]
[1644320503646,2.10775549,114.25,114.15,19.3853]
[1644320503847,2.10775549,114.25,114.15,13.3853]
[1644320503848,2.14961698,114.25,114.15,13.3853]
[1644320504047,2.14961698,114.25,114.13,13.1392]
[1644320504350,2.10775549,114.24,114.13,13.3892]
[1644320504750,27.07475549,114.24,114.13,13.3892]
[1644320505850,24.967,114.24,114.13,13.3892]
[1644320506450,30.967,114.24,114.13,13.3892]
[1644320506850,33.07475549,114.24,114.13,13.3892]
[1644320507952,30.967,114.24,114.13,13.3892]
[1644320509353,30.967,114.24,114.13,15.25486865]
[1644320511161,30.967,114.24,114.13,13.3892]
[1644320513064,30.967,114.24,114.13,15.25486865]
[1644320513264,30.967,114.24,114.14,23.3691]
[1644320513464,30.967,114.24,114.15,13.1372]
[1644320513667,30.967,114.24,114.15,15.00286865]
[1644320513864,30.967,114.24,114.15,15.25286865]
[1644320514065,24.967,114.24,114.16,1.86566865]
[1644320514263,24.967,114.24,114.16,2.11566865]
[1644320514666,24.967,114.24,114.17,13.1353]
[1644320515067,24.967,114.24,114.17,15.25096865]
[1644320515464,24.967,114.24,114.17,13.3853]
[1644320519886,26.20311921,114.24,114.17,13.3853]
[1644320520687,26.20311921,114.24,114.15,15.00286865]
[1644320520888,32.20311921,114.24,114.16,0.25]
[1644320521087,1.23611921,114.23,114.16,0.25]
[1644320522090,1.23611921,114.23,114.15,13.3872]
[1644320522792,1.23611921,114.22,114.15,13.3872]
[1644320525598,1.23611921,114.22,114.15,0.25]
[1644320525798,1.23611921,114.21,114.14,24.824]
[1644320527398,1.23611921,114.21,114.14,37.9635]
[1644320528299,1.23611921,114.2,114.14,37.7135]
[1644320528599,1.23611921,114.21,114.14,37.7135]
[1644320528803,1.23611921,114.2,114.14,37.7135]
[1644320529701,1.23611921,114.2,114.14,37.9635]
[1644320531001,1.23611921,114.19,114.14,13.1395]
[1644320531903,1.23611921,114.19,114.13,37.6516]
[1644320533707,1.23611921,114.19,114.13,37.9016]
[1644320534705,1.23611921,114.2,114.13,37.9016]
[1644320536607,1.23611921,114.2,114.13,39.76277536]
[1644320540409,1.23611921,114.2,114.13,37.9016]
[1644320540612,1.23611921,114.19,114.13,37.9016]
[1644320542310,1.23611921,114.19,114.13,13.3908]
[1644320542513,7.23611921,114.19,114.12,13.1424]
[1644320542714,25.09511921,114.19,114.09,1.86117536]
[1644320543011,1.23611921,114.18,114.09,1.86117536]
[1644320543214,24.21021921,114.18,114.09,1.86117536]
[1644320543411,1.23611921,114.17,114.07,27.3515]
[1644320543612,1.23611921,114.17,114.08,13.1466]
[1644320543613,1.2779807,114.17,114.08,13.1466]
[1644320543813,14.38321921,114.17,114.07,22.9715]
[1644320544011,16.53283619,114.17,114.07,22.9715]
[1644320544235,25.38661921,114.16,114.05,22.6743]
[1644320544412,34.94761921,114.16,114.04,1.22780983]
[1644320544611,14.77775549,114.15,114.03,1.22780983]
[1644320544812,25.38661921,114.14,114.02,5.60880983]
[1644320545011,12.67,114.13,114.02,4.381]
[1644320545212,29.9258747,114.13,114.01,24.1997]
[1644320545412,1.23611921,114.12,114.0,25.70990983]
[1644320545612,39.43515549,114.12,113.99,4.383]
[1644320545814,2.10775549,114.11,114.0,13.1546]
[1644320546214,8.10775549,114.11,114.0,13.1546]
[1644320546412,15.26145549,114.11,114.0,13.1546]
[1644320546613,21.26145549,114.11,113.98,24.80670983]
[1644320546816,2.10775549,114.1,113.98,23.5789]
[1644320547013,22.79675549,114.1,113.98,36.7355]
[1644320547416,46.35065549,114.1,113.98,36.7355]
[1644320547815,46.35065549,114.1,113.98,36.9855]
[1644320548818,13.1572,114.08,113.98,36.9855]
[1644320549218,13.1572,114.08,113.98,36.7355]
[1644320549917,46.35065549,114.1,113.98,36.7355]
[1644320549918,46.35065549,114.1,113.98,38.59667536]
[1644320550120,36.2239,114.1,113.98,38.59667536]
[1644320550319,36.2239,114.1,113.98,38.56356496]
[1644320550720,36.2239,114.1,113.98,38.81356496]
[1644320552044,42.2239,114.1,113.98,38.81356496]
[1644320552444,42.2239,114.1,113.98,44.81356496]
[1644320552642,42.2239,114.1,113.98,38.81356496]
[1644320552842,29.5539,114.1,113.98,38.81356496]
[1644320553243,29.5539,114.1,113.98,44.81356496]
[1644320553443,42.2239,114.1,113.98,44.81356496]
[1644320553642,42.2239,114.1,113.98,38.81356496]
[1644320554243,42.2239,114.1,113.98,44.81356496]
[1644320554443,42.2239,114.1,113.98,38.81356496]
[1644320554645,55.3802,114.1,113.98,38.81356496]
[1644320555544,67.0562,114.1,113.98,38.81356496]
[1644320556443,67.0562,114.1,113.98,38.56356496]
[1644320556843,71.4402,114.1,113.98,38.56356496]
[1644320558046,67.0562,114.1,113.98,38.81356496]
[1644320559050,67.0562,114.1,113.98,36.9523896]
[1644320559350,71.4402,114.1,113.98,36.9523896]
[1644320560051,71.4402,114.1,113.98,38.81356496]
[1644320560250,67.0562,114.1,113.98,38.81356496]
[1644320564352,55.3802,114.1,113.98,38.56356496]
[1644320564550,55.3802,114.1,113.98,44.56356496]
[1644320565551,13.1563,114.1,113.98,71.95874194]
[1644320565754,13.151,114.12,113.98,72.20874194]
[1644320565953,13.151,114.12,113.99,23.5347]
[1644320566153,13.151,114.12,114.02,13.1496]
[1644320566351,24.3511,114.14,114.03,4.383]
[1644320566553,22.6744,114.16,114.03,10.383]
[1644320566750,13.1487,114.14,114.03,35.66917536]
[1644320566952,13.1487,114.14,114.04,1.86117536]
[1644320567151,13.1487,114.14,114.04,7.86117536]
[1644320567351,13.1487,114.14,114.04,8.11117536]
[1644320567553,13.1487,114.14,114.05,1.86117536]
[1644320567751,13.1487,114.14,114.06,13.1469]
[1644320568153,13.1487,114.14,114.06,13.3969]
[1644320568953,19.1487,114.14,114.06,13.3969]
[1644320570354,19.1487,114.14,114.03,25.03617536]
[1644320570555,20.38481921,114.14,114.04,19.1499]
[1644320570755,1.23611921,114.13,114.03,23.175]
[1644320570955,13.1528,114.1,114.03,23.175]
[1644320571755,13.1528,114.1,114.03,36.5769]
[1644320572558,13.1528,114.1,114.03,23.425]
[1644320574558,20.38891921,114.1,114.03,23.425]
[1644320579459,19.1528,114.1,114.03,36.5773]
[1644320580562,14.38661921,114.11,114.03,36.5773]
[1644320580961,13.1505,114.11,114.03,36.5773]
[1644320581361,14.38661921,114.11,114.03,38.43398652]
[1644320581761,13.1505,114.11,114.03,38.43398652]
[1644320581963,14.38661921,114.11,114.03,38.43398652]
[1644320582162,13.1505,114.11,114.03,38.43398652]
[1644320582964,13.1505,114.11,114.03,38.18398652]
[1644320584064,13.1505,114.11,114.03,36.3273]
[1644320584266,13.1505,114.11,114.03,36.5773]
[1644320586674,13.1505,114.11,114.03,36.3273]